fUST/lending_fUST_20250716
["ID","MTS","AMOUNT","RATE_DAILY","PERIOD"]
[372526859,1752672640427,-460.0,0.00019178,2]
[372526860,1752672640436,-460.0,0.00019178,2]
[372526861,1752672640446,-460.0,0.00019178,2]
[372526862,1752672640455,-800.0,0.000192,2]
[372526863,1752672640464,-663.0,0.00019452,2]
[372526864,1752672640474,-151.0,0.00019452,2]
[372526865,1752672640483,-151.0,0.00019452,2]
[372526867,1752672640492,-557.60791243,0.00019452,2]
[372526868,1752672640501,-500.0,0.00019452,2]
[372526870,1752672640511,-198.0,0.00019452,2]
[372526871,1752672640521,-359.01659589,0.00019452,2]
[372526872,1752672640530,-460.0,0.00019452,2]
[372526873,1752672640540,-460.0,0.00019452,2]
[372526874,1752672640549,-460.0,0.00019452,2]
[372526875,1752672640560,-460.0,0.00019452,2]
[372526876,1752672640570,-460.0,0.00019452,2]
[372526878,1752672640579,-460.0,0.00019452,2]
[372526880,1752672640589,-460.0,0.00019452,2]
[372526881,1752672640599,-460.0,0.00019452,2]
[372526882,1752672640608,-460.0,0.00019452,2]
[372526883,1752672640617,-460.0,0.00019452,2]
[372526884,1752672640626,-460.0,0.00019452,2]
[372526885,1752672640635,-460.0,0.00019452,2]
[372526886,1752672640644,-460.0,0.00019452,2]
[372526887,1752672640653,-460.0,0.00019452,2]
[372526888,1752672640663,-778.03,0.00019452,2]
[372526889,1752672640672,-460.0,0.00019452,2]
[372526890,1752672640682,-460.0,0.00019452,2]
[372526891,1752672640692,-460.0,0.00019452,2]
[372526892,1752672640701,-460.0,0.00019452,2]
[372526893,1752672640711,-460.0,0.00019452,2]
[372526894,1752672640720,-460.0,0.00019452,2]
[372526895,1752672640730,-460.0,0.00019452,2]
[372526896,1752672640740,-460.0,0.00019452,2]
[372526897,1752672640749,-460.0,0.00019452,2]
[372526898,1752672640758,-460.0,0.00019452,2]
[372526899,1752672640767,-609.81,0.00019452,2]
[372526900,1752672640777,-460.0,0.00019452,2]
[372526901,1752672640786,-460.0,0.00019452,2]
[372526902,1752672640796,-668.16,0.00019452,2]
[372526903,1752672640807,-460.0,0.00019452,2]
[372526904,1752672640817,-460.0,0.00019452,2]
[372526905,1752672640827,-2931.7,0.00019452,2]
[372526906,1752672640837,-1195.18,0.00019452,2]
[372526907,1752672640846,-460.0,0.00019452,2]
[372526908,1752672640855,-460.0,0.00019452,2]
[372526909,1752672640865,-460.0,0.00019452,2]
[372526910,1752672640874,-460.0,0.00019452,2]
[372526911,1752672640883,-460.0,0.00019452,2]
[372526912,1752672640892,-460.0,0.00019452,2]
[372526913,1752672640902,-460.0,0.00019452,2]
[372526914,1752672640912,-460.0,0.00019452,2]
[372526915,1752672640922,-460.0,0.00019452,2]
[372526916,1752672640931,-460.0,0.00019452,2]
[372526917,1752672640941,-1110.33,0.00019452,2]
[372526918,1752672640950,-999.15,0.00019452,2]
[372526919,1752672640960,-635.74,0.00019452,2]
[372526920,1752672640969,-1301.78,0.00019452,2]
[372526921,1752672640978,-460.0,0.00019452,2]
[372526922,1752672640987,-460.0,0.00019452,2]
[372526923,1752672640996,-460.0,0.00019452,2]
[372526924,1752672641005,-2011.25,0.00019452,2]
[372526925,1752672641014,-460.0,0.00019452,2]
[372526926,1752672641023,-581.89,0.00019452,2]
[372526927,1752672641031,-1902.57,0.00019452,2]
[372526928,1752672641041,-157.74,0.00019452,2]
[372526929,1752672641051,-1243.55,0.00019452,2]
[372526930,1752672641062,-460.0,0.00019452,2]
[372526931,1752672641072,-460.0,0.00019452,2]
[372526932,1752672641081,-460.0,0.00019452,2]
[372526933,1752672641091,-460.0,0.00019452,2]
[372526934,1752672641100,-479.20991432,0.00019452,2]
[372526935,1752672641110,-460.0,0.00019452,2]
[372526936,1752672641120,-1872.8,0.00019452,2]
[372526937,1752672641129,-460.0,0.00019452,2]
[372526938,1752672641140,-460.0,0.00019452,2]
[372526939,1752672641149,-729.61,0.00019452,2]
[372526940,1752672641159,-460.0,0.00019452,2]
[372526941,1752672641168,-460.0,0.00019452,2]
[372526942,1752672641179,-460.0,0.00019452,2]
[372526943,1752672641190,-460.0,0.00019452,2]
[372526944,1752672641200,-502.09429587,0.00019721,2]
[372526945,1752672641210,-663.0,0.00019726,2]
[372526946,1752672641219,-151.0,0.00019726,2]
[372526947,1752672641229,-166.82089474,0.00019726,2]
[372526948,1752672641239,-500.0,0.00019726,2]
[372526949,1752672641248,-460.0,0.00019726,2]
[372526950,1752672641258,-460.0,0.00019726,2]
[372526951,1752672641268,-485.75891849,0.00019726,2]
[372526952,1752672641280,-460.0,0.00019726,2]
[372526953,1752672641293,-460.0,0.00019726,2]
[372526954,1752672641303,-460.0,0.00019726,2]
[372526955,1752672641314,-282.34658908,0.00019726,2]
[372526956,1752672641328,-778.03,0.00019726,2]
[372526957,1752672641338,-460.0,0.00019726,2]
[372526958,1752672641349,-460.0,0.00019726,2]
[372526959,1752672641363,-460.0,0.00019726,2]
[372526960,1752672641375,-460.0,0.00019726,2]
[372526961,1752672641386,-609.81,0.00019726,2]
[372526962,1752672641396,-460.0,0.00019726,2]
[372526963,1752672641406,-460.0,0.00019726,2]
[372526964,1752672641415,-668.16,0.00019726,2]
[372526965,1752672641425,-460.0,0.00019726,2]
[372526966,1752672641434,-460.0,0.00019726,2]
[372526967,1752672641445,-2931.7,0.00019726,2]
[372526968,1752672641455,-1195.18,0.00019726,2]
[372526969,1752672641464,-460.0,0.00019726,2]
[372526970,1752672641474,-460.0,0.00019726,2]
[372526971,1752672641484,-460.0,0.00019726,2]
[372526972,1752672641493,-460.0,0.00019726,2]
[372526973,1752672641502,-460.0,0.00019726,2]
[372526974,1752672641512,-460.0,0.00019726,2]
[372526975,1752672641521,-1110.33,0.00019726,2]
[372526976,1752672641531,-999.15,0.00019726,2]
[372526977,1752672641541,-635.74,0.00019726,2]
[372526978,1752672641550,-1301.78,0.00019726,2]
[372526979,1752672641559,-460.2,0.00019726,2]
[372526980,1752672641569,-460.0,0.00019726,2]
[372526981,1752672641579,-460.0,0.00019726,2]
[372526982,1752672641588,-2011.25,0.00019726,2]
[372526983,1752672641597,-460.0,0.00019726,2]
[372526984,1752672641607,-581.89,0.00019726,2]
[372526985,1752672641616,-1902.57,0.00019726,2]
[372526986,1752672641625,-1243.55,0.00019726,2]
[372526987,1752672641634,-460.0,0.00019726,2]
[372526988,1752672641644,-460.0,0.00019726,2]
[372526989,1752672641654,-460.0,0.00019726,2]
[372526990,1752672641664,-460.0,0.00019726,2]
[372526991,1752672641674,-460.0,0.00019726,2]
[372526992,1752672641683,-1872.8,0.00019726,2]
[372526993,1752672641692,-460.0,0.00019726,2]
[372526994,1752672641702,-460.0,0.00019726,2]
[372526995,1752672641712,-729.61,0.00019726,2]
[372526996,1752672641721,-460.0,0.00019726,2]
[372526997,1752672641730,-460.0,0.00019726,2]
[372526998,1752672641740,-460.0,0.00019726,2]
[372526999,1752672641749,-460.0,0.00019726,2]
[372527000,1752672641760,-500.0,0.00019776,2]
[372527001,1752672641770,-501.72265827,0.00019834,2]
[372527002,1752672641780,-500.0,0.00019843,2]
[372527003,1752672641791,-1628.50337172,0.000199,2]
[372527004,1752672641800,-500.0,0.00019942,2]
[372527005,1752672641810,-663.0,0.0002,2]
[372527006,1752672641819,-151.0,0.0002,2]
[372527007,1752672641829,-500.0,0.0002,2]
[372527008,1752672641839,-151.0,0.0002,2]
[372527009,1752672641848,-151.0,0.0002,2]
[372527010,1752672641858,-460.0,0.0002,2]
[372527011,1752672641867,-151.0,0.0002,2]
[372527012,1752672641879,-460.0,0.0002,2]
[372527013,1752672641890,-460.0,0.0002,2]
[372527014,1752672641900,-460.0,0.0002,2]
[372527015,1752672641909,-778.03,0.0002,2]
[372527016,1752672641919,-460.0,0.0002,2]
[372527017,1752672641928,-460.0,0.0002,2]
[372527018,1752672641938,-609.81,0.0002,2]
[372527019,1752672641947,-460.0,0.0002,2]
[372527020,1752672641958,-460.0,0.0002,2]
[372527021,1752672641969,-668.16,0.0002,2]
[372527022,1752672641979,-460.0,0.0002,2]
[372527023,1752672641989,-460.0,0.0002,2]
[372527024,1752672641999,-2931.7,0.0002,2]
[372527025,1752672642008,-1195.18,0.0002,2]
[372527026,1752672642017,-460.0,0.0002,2]
[372527027,1752672642027,-460.0,0.0002,2]
[372527028,1752672642039,-460.0,0.0002,2]
[372527029,1752672642050,-460.0,0.0002,2]
[372527030,1752672642061,-460.0,0.0002,2]
[372527031,1752672642070,-460.0,0.0002,2]
[372527032,1752672642080,-1110.33,0.0002,2]
[372527033,1752672642089,-999.15,0.0002,2]
[372527034,1752672642099,-635.74,0.0002,2]
[372527035,1752672642108,-1301.78,0.0002,2]
[372527036,1752672642118,-1293.99017771,0.0002,5]
[372527037,1752672642213,-307.0,0.0002,2]
[372527038,1752672642224,-247.41,0.0002,2]
[372527039,1752672642234,-460.0,0.0002,2]
[372527040,1752672642243,-2011.25,0.0002,2]
[372527041,1752672642253,-460.0,0.0002,2]
[372527042,1752672642263,-581.89,0.0002,2]
[372527043,1752672642273,-1902.57,0.0002,2]
[372527044,1752672642287,-1243.55,0.0002,2]
[372527045,1752672642296,-460.0,0.0002,2]
[372527046,1752672642305,-460.0,0.0002,2]
[372527047,1752672642317,-460.0,0.0002,2]
[372527048,1752672642328,-460.0,0.0002,2]
[372527049,1752672642337,-460.0,0.0002,2]
[372527050,1752672642347,-1872.8,0.0002,2]
[372527051,1752672642358,-460.0,0.0002,2]
[372527052,1752672642367,-460.0,0.0002,2]
[372527053,1752672642377,-729.61,0.0002,2]
[372527054,1752672642387,-460.0,0.0002,2]
[372527055,1752672642396,-403.82,0.0002,2]
[372527056,1752672642405,-460.0,0.0002,2]
[372527057,1752672642415,-460.0,0.0002,2]
[372527058,1752672642424,-1472.6722874,0.00020014,2]
[372527059,1752672642434,-160.0,0.00020039,2]
[372527060,1752672642443,-1628.50337143,0.00020107,2]
[372527061,1752672642453,-10018.15424856,0.00020173,3]
[372527062,1752672642462,-525.58295679,0.00020175,2]
[372527063,1752672642471,-838.99048831,0.00020175,2]
[372527064,1752672642480,-160.0,0.00020175,2]
[372527065,1752672642490,-12605.49131908,0.00020175,2]
[372527066,1752672642499,-230.8109288,0.00020175,2]
[372527067,1752672642509,-204.876306,0.00020187,2]
[372527068,1752672642519,-900.0,0.000202,3]
[372527069,1752672642530,-460.0,0.00020273,2]
[372527070,1752672642540,-460.0,0.00020273,2]
[372527071,1752672642549,-460.0,0.00020273,2]
[372527072,1752672642559,-778.03,0.00020273,2]
[372527073,1752672642569,-460.0,0.00020273,2]
[372527074,1752672642579,-460.0,0.00020273,2]
[372527075,1752672642588,-609.81,0.00020273,2]
[372527076,1752672642598,-460.0,0.00020273,2]
[372527077,1752672642607,-460.0,0.00020273,2]
[372527078,1752672642617,-668.16,0.00020273,2]
[372527079,1752672642626,-460.0,0.00020273,2]
[372527080,1752672642636,-460.0,0.00020273,2]
[372527081,1752672642645,-2931.7,0.00020273,2]
[372527082,1752672642655,-1195.18,0.00020273,2]
[372527083,1752672642664,-460.0,0.00020273,2]
[372527084,1752672642674,-460.0,0.00020273,2]
[372527085,1752672642683,-460.0,0.00020273,2]
[372527086,1752672642693,-460.0,0.00020273,2]
[372527087,1752672642702,-460.0,0.00020273,2]
[372527088,1752672642712,-460.0,0.00020273,2]
[372527089,1752672642721,-1110.33,0.00020273,2]
[372527090,1752672642731,-999.15,0.00020273,2]
[372527091,1752672642740,-635.74,0.00020273,2]
[372527092,1752672642750,-1301.78,0.00020273,2]
[372527093,1752672642760,-460.0,0.00020273,2]
[372527094,1752672642769,-2011.25,0.00020273,2]
[372527095,1752672642778,-460.0,0.00020273,2]
[372527096,1752672642792,-581.89,0.00020273,2]
[372527097,1752672642803,-1902.57,0.00020273,2]
[372527098,1752672642814,-1243.55,0.00020273,2]
[372527099,1752672642824,-460.0,0.00020273,2]
[372527100,1752672642835,-460.0,0.00020273,2]
[372527101,1752672642844,-460.0,0.00020273,2]
[372527102,1752672642854,-460.0,0.00020273,2]
[372527103,1752672642863,-460.0,0.00020273,2]
[372527104,1752672642873,-1872.8,0.00020273,2]
[372527105,1752672642882,-460.0,0.00020273,2]
[372527106,1752672642892,-460.0,0.00020273,2]
[372527107,1752672642902,-729.61,0.00020273,2]
[372527108,1752672642911,-460.0,0.00020273,2]
[372527109,1752672642920,-460.0,0.00020273,2]
[372527110,1752672642930,-460.0,0.00020273,2]
[372527112,1752672642940,-663.0,0.00020274,2]
[372527113,1752672642949,-151.0,0.00020274,2]
[372527114,1752672642958,-500.0,0.00020274,2]
[372527115,1752672642967,-1628.50337143,0.00020314,3]
[372527116,1752672642977,-151.0,0.00020314,2]
[372527117,1752672642986,-523.25395318,0.00020324,2]
[372527119,1752672642996,-151.0,0.00020438,2]
[372527121,1752672643005,-151.0,0.00020438,2]
[372527123,1752672643015,-408.29426331,0.00020447,2]
[372527125,1752672643024,-268.5902745,0.0002049,2]
[372527127,1752672643034,-1628.50337143,0.00020521,3]
[372527129,1752672643043,-460.0,0.00020547,2]
[372527131,1752672643052,-274.53,0.00020547,2]
[372527133,1752672643062,-460.0,0.00020547,2]
[372527135,1752672643072,-778.03,0.00020547,2]
[372527137,1752672643081,-460.0,0.00020547,2]
[372527138,1752672643091,-424.71380105,0.00020547,2]
[372527139,1752672643100,-609.81,0.00020547,2]
[372527140,1752672643109,-460.0,0.00020547,2]
[372527141,1752672643119,-460.0,0.00020547,2]
[372527142,1752672643128,-668.16,0.00020547,2]
[372527143,1752672643138,-460.0,0.00020547,2]
[372527144,1752672643147,-460.0,0.00020547,2]
[372527146,1752672643157,-2931.7,0.00020547,2]
[372527148,1752672643167,-1195.18,0.00020547,2]
[372527149,1752672643176,-460.0,0.00020547,2]
[372527150,1752672643186,-460.0,0.00020547,2]
[372527151,1752672643196,-460.0,0.00020547,2]
[372527152,1752672643206,-435.63,0.00020547,2]
[372527153,1752672643215,-578.44,0.00020547,2]
[372527154,1752672643225,-460.0,0.00020547,2]
[372527155,1752672643235,-1110.33,0.00020547,2]
[372527157,1752672643245,-999.15,0.00020547,2]
[372527158,1752672643255,-635.74,0.00020547,2]
[372527159,1752672643264,-1301.78,0.00020547,2]
[372527161,1752672643273,-306.21,0.00020547,2]
[372527163,1752672643285,-2011.25,0.00020547,2]
[372527164,1752672643294,-460.0,0.00020547,2]
[372527165,1752672643303,-581.89,0.00020547,2]
[372527166,1752672643314,-1902.57,0.00020547,2]
[372527167,1752672643323,-1243.55,0.00020547,2]
[372527168,1752672643333,-460.0,0.00020547,2]
[372527169,1752672643344,-460.0,0.00020547,2]
[372527170,1752672643357,-460.0,0.00020547,2]
[372527171,1752672643369,-460.0,0.00020547,2]
[372527172,1752672643379,-347.13242851,0.00020547,2]
[372527173,1752672643389,-1872.8,0.00020547,2]
[372527174,1752672643398,-460.0,0.00020547,2]
[372527175,1752672643408,-460.0,0.00020547,2]
[372527176,1752672643417,-729.61,0.00020547,2]
[372527177,1752672643427,-460.0,0.00020547,2]
[372527178,1752672643436,-460.0,0.00020547,2]
[372527179,1752672643446,-460.0,0.00020547,2]
[372527180,1752672643456,-663.0,0.00020548,2]
[372527181,1752672643474,-171.55852305,0.00020548,2]
[372527183,1752672643484,-500.0,0.00020548,2]
[372527184,1752672643496,-260.0,0.00020587,2]
[372527185,1752672643505,-1680.0,0.00020624,2]
[372527186,1752672643515,-387.0,0.00020724,2]
[372527187,1752672643524,-476.07036022,0.00020728,3]
[372527188,1752672643534,-1628.50337143,0.00020728,3]
[372527189,1752672643543,-1000.0,0.0002078,2]
[372527190,1752672643553,-460.0,0.00020821,2]
[372527191,1752672643564,-460.0,0.00020821,2]
[372527192,1752672643573,-778.03,0.00020821,2]
[372527193,1752672643583,-460.0,0.00020821,2]
[372527194,1752672643592,-609.81,0.00020821,2]
[372527195,1752672643602,-460.0,0.00020821,2]
[372527196,1752672643612,-460.0,0.00020821,2]
[372527197,1752672643621,-668.16,0.00020821,2]
[372527198,1752672643631,-460.0,0.00020821,2]
[372527199,1752672643640,-460.0,0.00020821,2]
[372527200,1752672643649,-2931.7,0.00020821,2]
[372527201,1752672643658,-1195.18,0.00020821,2]
[372527202,1752672643667,-460.0,0.00020821,2]
[372527203,1752672643677,-460.0,0.00020821,2]
[372527204,1752672643686,-460.0,0.00020821,2]
[372527205,1752672643695,-384.54769828,0.00020821,2]
[372527206,1752672643705,-478.58907954,0.00020821,2]
[372527207,1752672643724,-631.74092046,0.00020821,2]
[372527208,1752672643734,-999.15,0.00020821,2]
[372527209,1752672643743,-635.74,0.00020821,2]
[372527210,1752672643753,-1301.78,0.00020821,2]
[372527211,1752672643763,-2011.25,0.00020821,2]
[372527212,1752672643772,-460.0,0.00020821,2]
[372527213,1752672643782,-581.89,0.00020821,2]
[372527214,1752672643791,-1902.57,0.00020821,2]
[372527215,1752672643801,-1243.55,0.00020821,2]
[372527216,1752672643811,-460.0,0.00020821,2]
[372527217,1752672643820,-460.0,0.00020821,2]
[372527218,1752672643830,-460.0,0.00020821,2]
[372527219,1752672643840,-460.0,0.00020821,2]
[372527220,1752672643849,-1872.8,0.00020821,2]
[372527221,1752672643859,-460.0,0.00020821,2]
[372527222,1752672643868,-460.0,0.00020821,2]
[372527223,1752672643878,-729.61,0.00020821,2]
[372527224,1752672643887,-460.0,0.00020821,2]
[372527225,1752672643897,-460.0,0.00020821,2]
[372527226,1752672643907,-460.0,0.00020821,2]
[372527227,1752672643917,-663.0,0.00020822,2]
[372527228,1752672643926,-500.0,0.00020822,2]
[372527229,1752672643936,-151.0,0.00020932,2]
[372527230,1752672643945,-151.0,0.00020932,2]
[372527231,1752672643955,-1628.50337143,0.00020934,4]
[372527232,1752672643964,-1472.6722874,0.0002095,2]
[372527233,1752672643974,-151.0,0.00021033,2]
[372527234,1752672643983,-709.271,0.00021033,2]
[372527235,1752672643993,-178.46635677,0.00021033,2]
[372527236,1752672644003,-460.0,0.00021095,2]
[372527237,1752672644012,-460.0,0.00021095,2]
[372527238,1752672644022,-778.03,0.00021095,2]
[372527239,1752672644031,-460.0,0.00021095,2]
[372527240,1752672644040,-609.81,0.00021095,2]
[372527241,1752672644049,-460.0,0.00021095,2]
[372527242,1752672644059,-538.97,0.00021095,2]
[372527243,1752672644070,-668.16,0.00021095,2]
[372527244,1752672644080,-460.0,0.00021095,2]
[372527245,1752672644089,-165.17,0.00021095,2]
[372527246,1752672644098,-2931.7,0.00021095,2]
[372527247,1752672644108,-1195.18,0.00021095,2]
[372527248,1752672644117,-460.0,0.00021095,2]
[372527249,1752672644127,-460.0,0.00021095,2]
[372527250,1752672644138,-460.0,0.00021095,2]
[372527251,1752672644148,-1110.33,0.00021095,2]
[372527252,1752672644157,-999.15,0.00021095,2]
[372527253,1752672644166,-635.74,0.00021095,2]
[372527254,1752672644176,-1301.78,0.00021095,2]
[372527255,1752672644186,-2011.25,0.00021095,2]
[372527256,1752672644195,-460.0,0.00021095,2]
[372527257,1752672644204,-581.89,0.00021095,2]
[372527258,1752672644213,-1902.57,0.00021095,2]
[372527259,1752672644223,-1243.55,0.00021095,2]
[372527260,1752672644232,-460.0,0.00021095,2]
[372527261,1752672644242,-436.32132226,0.00021095,2]
[372527262,1752672644250,-460.0,0.00021095,2]
[372527263,1752672644260,-460.0,0.00021095,2]
[372527264,1752672644269,-1872.8,0.00021095,2]
[372527265,1752672644280,-460.0,0.00021095,2]
[372527266,1752672644290,-418.43907316,0.00021095,2]
[372527267,1752672644299,-729.61,0.00021095,2]
[372527268,1752672644309,-374.78441826,0.00021095,2]
[372527269,1752672644394,-460.0,0.00021095,2]
[372527270,1752672644414,-460.0,0.00021095,2]
[372527271,1752672644424,-663.0,0.00021096,2]
[372527272,1752672644433,-500.0,0.00021096,2]
[372527273,1752672644444,-360.0,0.00021135,2]
[372527274,1752672644454,-1628.50337143,0.00021141,4]
[372527275,1752672644463,-1000.0,0.0002127,2]
[372527276,1752672644473,-1628.50337143,0.00021348,5]
[372527277,1752672644483,-460.0,0.00021369,2]
[372527278,1752672644492,-460.0,0.00021369,2]
[372527279,1752672644502,-778.03,0.00021369,2]
[372527280,1752672644511,-460.0,0.00021369,2]
[372527281,1752672644520,-609.81,0.00021369,2]
[372527282,1752672644529,-460.0,0.00021369,2]
[372527283,1752672644539,-668.16,0.00021369,2]
[372527284,1752672644548,-460.0,0.00021369,2]
[372527285,1752672644558,-2931.7,0.00021369,2]
[372527286,1752672644570,-1195.18,0.00021369,2]
[372527287,1752672644580,-460.0,0.00021369,2]
[372527288,1752672644589,-460.0,0.00021369,2]
[372527289,1752672644599,-460.0,0.00021369,2]
[372527290,1752672644609,-1110.33,0.00021369,2]
[372527291,1752672644619,-999.15,0.00021369,2]
[372527292,1752672644628,-635.74,0.00021369,2]
[372527293,1752672644637,-1301.78,0.00021369,2]
[372527294,1752672644647,-2011.25,0.00021369,2]
[372527295,1752672644656,-460.0,0.00021369,2]
[372527296,1752672644666,-581.89,0.00021369,2]
[372527297,1752672644676,-1902.57,0.00021369,2]
[372527298,1752672644685,-1243.55,0.00021369,2]
[372527299,1752672644694,-460.0,0.00021369,2]
[372527300,1752672644704,-460.0,0.00021369,2]
[372527301,1752672644713,-571.22,0.00021369,2]
[372527302,1752672644723,-1872.8,0.00021369,2]
[372527303,1752672644732,-460.0,0.00021369,2]
[372527304,1752672644742,-729.61,0.00021369,2]
[372527305,1752672644752,-460.0,0.00021369,2]
[372527306,1752672644761,-460.0,0.00021369,2]
[372527307,1752672644771,-663.0,0.0002137,2]
[372527308,1752672644781,-500.0,0.0002137,2]
[372527309,1752672644791,-151.0,0.00021502,2]
[372527310,1752672644800,-151.0,0.00021502,2]
[372527311,1752672644810,-151.0,0.00021502,2]
[372527312,1752672644820,-1990.68527304,0.00021502,2]
[372527313,1752672644934,3702.66128626,0.00027397,120]
[372527316,1752672646503,-1810.95672696,0.00021502,2]
[372527317,1752672646513,-17578.07964248,0.00021502,2]
[372527318,1752672646523,-207.4,0.00021502,2]
[372527319,1752672646532,-160.0,0.00021543,3]
[372527320,1752672646542,-1628.50337143,0.00021555,5]
[372527321,1752672646551,-3942.302754,0.00021557,2]
[372527322,1752672646560,-500.0,0.00021557,2]
[372527323,1752672646573,-4088.1679559,0.00021612,2]
[372527324,1752672646583,-460.0,0.00021643,2]
[372527325,1752672646592,-778.03,0.00021643,2]
[372527326,1752672646602,-609.81,0.00021643,2]
[372527327,1752672646612,-460.0,0.00021643,2]
[372527328,1752672646622,-668.16,0.00021643,2]
[372527329,1752672646631,-460.0,0.00021643,2]
[372527330,1752672646640,-2931.7,0.00021643,2]
[372527331,1752672646649,-1195.18,0.00021643,2]
[372527332,1752672646658,-460.0,0.00021643,2]
[372527333,1752672646668,-590.37,0.00021643,2]
[372527334,1752672646678,-460.0,0.00021643,2]
[372527335,1752672646687,-1110.33,0.00021643,2]
[372527336,1752672646696,-999.15,0.00021643,2]
[372527337,1752672646705,-635.74,0.00021643,2]
[372527338,1752672646714,-1301.78,0.00021643,2]
[372527339,1752672646723,-2011.25,0.00021643,2]
[372527340,1752672646733,-460.0,0.00021643,2]
[372527341,1752672646742,-581.89,0.00021643,2]
[372527342,1752672646751,-1902.57,0.00021643,2]
[372527343,1752672646760,-1243.55,0.00021643,2]
[372527344,1752672646769,-460.0,0.00021643,2]
[372527345,1752672646778,-460.0,0.00021643,2]
[372527346,1752672646787,-1872.8,0.00021643,2]
[372527347,1752672646796,-460.0,0.00021643,2]
[372527348,1752672646805,-729.61,0.00021643,2]
[372527349,1752672646816,-460.0,0.00021643,2]
[372527350,1752672646825,-460.0,0.00021643,2]
[372527351,1752672646834,-663.0,0.00021644,2]
[372527352,1752672646843,-500.0,0.00021644,2]
[372527353,1752672646852,-500.0,0.00021667,2]
[372527354,1752672646862,-2052.96780414,0.00021667,2]
[372527355,1752672646874,-2186.46236613,0.00021667,2]
[372527356,1752672646884,-460.0,0.00021683,2]
[372527357,1752672646893,-2579.23663834,0.00021722,2]
[372527358,1752672646904,-381.92818453,0.00021722,2]
[372527367,1752672647742,-1435.1242637,0.00021722,2]
[372527368,1752672647752,-1628.50337143,0.00021762,5]
[372527369,1752672647762,-500.0,0.00021862,2]
[372527370,1752672647772,-1472.6722874,0.00021887,2]
[372527371,1752672647781,-151.0,0.00021917,2]
[372527372,1752672647791,-151.0,0.00021917,2]
[372527373,1752672647801,-460.0,0.00021917,2]
[372527374,1752672647810,-778.03,0.00021917,2]
[372527375,1752672647821,-499.84501315,0.00021917,2]
[372527376,1752672647833,-109.96498685,0.00021917,2]
[372527377,1752672647842,-460.0,0.00021917,2]
[372527378,1752672647853,-668.16,0.00021917,2]
[372527379,1752672647862,-460.0,0.00021917,2]
[372527380,1752672647872,-2931.7,0.00021917,2]
[372527381,1752672647882,-1195.18,0.00021917,2]
[372527382,1752672647891,-460.0,0.00021917,2]
[372527383,1752672647901,-460.0,0.00021917,2]
[372527384,1752672647911,-1110.33,0.00021917,2]
[372527385,1752672647920,-999.15,0.00021917,2]
[372527386,1752672647930,-227.3238404,0.00021917,2]
[372527390,1752672707018,2880.6,0.00027397,120]
[372527391,1752672816430,851.722436,0.00027397,120]
[372527393,1752673084016,2144.0,0.00027397,120]